Cogmind - Beta 14 @@@ ROGUE MODE // 2024.08.24 @ 23:40:07 Player: Grem Result: Destroyed by S-10 Pest with Light Assault Rifle Performance ------------- Evolutions (1) 500 Regions Visited (3) 600 Robots Destroyed (18) 90 Value Destroyed (497) 497 Prototype IDs (0) 0 Alien Tech Used (0) 0 Bonus (0) 0 TOTAL SCORE: 1687 Bonus ------- None Cogmind --------- Core Integrity 0/400 Matter 300/300 Energy 349/350 System Corruption 1% Temperature Cool (0) Movement Core (100) Ox1 Location -9/Materials Parts ------- > --- POWER (1) -------- (None) > --- PROPULSION (4) --- (None) > --- UTILITY (2) ------ High-capacity Battery Power Shielding > --- WEAPON (2) ------- (None) > --- INVENTORY (5) ---- Light Treads Backup Propulsion I Heat Sink Backup Laser I Peak State ------------ > --- POWER ------------ (None) > --- PROPULSION ------- Aluminum Leg Aluminum Leg Flight Unit Flight Unit > --- UTILITY ---------- Power Shielding Hardened Light Armor Plating > --- WEAPON ----------- Heavy EM Pulse Gun Mini Grenade Launcher > --- INVENTORY -------- Heat Sink High-capacity Battery [Rating: 11] Favorites ----------- Power Light Ion Engine Engine Light Ion Engine Propulsion Aluminum Leg Treads Light Treads Leg Aluminum Leg Hover Unit Hover Unit Flight Unit Flight Unit Utility Power Shielding Device Heat Sink Storage High-capacity Battery Protection Power Shielding Weapon EM Pulse Gun Energy Gun EM Pulse Gun Ballistic Gun Assault Rifle Launcher Mini Grenade Launcher Slashing Weapon Mining Claw Build | -11 -10 -10 -9 ------- Run | Yrd Mat Min Mat Slots Evolved 2 | . . . 2 Power . | . . . . Propulsion 2 | . . . 2 Utility . | . . . . Weapon . | . . . . Parts Attached 39 | 5 7 9 18 Power 4 | 1 . 2 1 Engine 4 | 1 . 2 1 Core . | . . . . Reactor . | . . . . Propulsion 19 | 2 3 5 9 Treads 1 | . . . 1 Leg 8 | 2 2 . 4 Wheel . | . . . . Hover 2 | . . . 2 Flight 8 | . 1 5 2 Utility 7 | . 2 1 4 Device 1 | . 1 . . Storage 4 | . 1 1 2 Processor . | . . . . Hackware . | . . . . Protection 2 | . . . 2 Artifact . | . . . . Weapon 9 | 2 2 1 4 Energy Gun 4 | 1 . . 3 Energy Cannon . | . . . . Ballistic Gun 3 | 1 2 . . Ballistic Cannon . | . . . . Launcher 1 | . . . 1 Special Weapon . | . . . . Impact Weapon . | . . . . Slashing Weapon 1 | . . 1 . Piercing Weapon . | . . . . Special Melee Weapon . | . . . . Unidentified Prototypes . | . . . . Parts Lost 13 | . . 1 12 Power 2 | . . . 2 Propulsion 7 | . . 1 6 Utility 1 | . . . 1 Weapon 3 | . . . 3 Highest Loss Streak 5 | . . 1 5 To Critical Strikes . | . . . . Average Slot Usage (%) 72 | . 86 83 65 Engine 9 | . 14 14 6 Treads 2 | . . . 3 Leg 12 | . 27 1 9 Hover 3 | . . . 5 Flight 4 | . . 24 2 Device 4 | . 13 14 . Storage 6 | . 1 1 9 Protection 7 | . . . 11 Energy Gun 13 | . 14 14 12 Ballistic Gun 3 | . 13 1 . Launcher 2 | . . . 3 Slashing Weapon 1 | . . 10 . Peak Build Rating 11 | 5 7 7 11 Average Rating 6 | 3 6 6 7 On Entrance 4 | . 5 7 6 Naked Turns . | . . . . Heaviest Build 14 | 7 11 11 14 Greatest Support 20 | 20 20 20 20 Greatest Overweight (x) 4 | . . 2 4 Average Overweight (x) . | . . . . Largest Inventory Capacity 8 | 5 5 8 5 Average Capacity 5 | 5 5 5 5 Most Carried 5 | 2 4 5 5 Average Carried 2 | . 1 3 2 Final Capacity 5 | 5 5 5 5 Final Carried 4 | 1 2 3 4 Class Distribution -------------------- 87% | Mutant 12% | Scavenger-Mutant Dominant Class ---------------- Mutant | -10/Materials Scavenger-Mutant | -10/Mines Mutant | -9/Materials Resources | -11 -10 -10 -9 ----------- Run | Yrd Mat Min Mat Matter Collected 569 | 253 16 36 264 Remotely . | . . . . Salvage Created 524 | 45 50 33 396 Parts 29 | 4 2 3 20 Haulers Intercepted . | . . . . Recyclers Shooed 2 | . . . 2 Parts Field Recycled . | . . . . Retrieved Matter . | . . . . Parts Self-Destructed . | . . . . Prevented . | . . . . Kills | -11 -10 -10 -9 ------- Run | Yrd Mat Min Mat Combat Hostiles Destroyed 16 | 1 1 2 12 Guns 11 | 1 1 2 7 AOE 5 | . . . 5 Classes Destroyed 5 | 1 . 1 3 Operator 1 | . . . 1 Watcher 1 | . . . 1 Swarmer 6 | . . 2 4 Grunt 8 | 1 1 . 6 Sentry 2 | . . . 2 Best Kill Streak 4 | 1 1 2 4 Combat Bots Only 4 | 1 1 2 4 Max Kills in Single Turn 3 | 1 1 1 3 Gunslinging . | . . . . Exploded 3 | . . . 3 Melee . | . . . . Uniques/NPCs Destroyed . | . . . . Combat | -11 -10 -10 -9 -------- Run | Yrd Mat Min Mat Hostile Shots Fired 176 | 1 19 9 147 Missed 66 | . 8 3 55 Damage Taken 1580 | 12 117 174 1277 Core 541 | 12 31 94 404 Absorbed by Shields . | . . . . Redirected to Shielding 21 | . . . 21 Regen/Repaired (Parts) 47 | . . . 47 Core Remaining (%) 70 | 95 . 45 . Volleys Fired 56 | 1 7 4 44 Largest 2 | 2 1 1 2 Hottest 60 | 60 40 40 60 Shots Fired 60 | 2 7 4 47 Gun 55 | 2 7 4 42 Cannon . | . . . . Launcher 5 | . . . 5 Special . | . . . . Kinetic 1 | 1 . . . Thermal 6 | . . . 6 Explosive 5 | . . . 5 Electromagnetic 48 | 1 7 4 36 Robot Hit Streak 11 | 1 3 3 11 Robot Miss Streak 4 | 1 2 1 4 Penetration Max . | . . . . Secondary Targets . | . . . . Shots Hit Robots 44 | 1 4 3 36 Core Hits 30 | 1 2 2 25 Critical Kills . | . . . . Critical Parts Destroyed . | . . . . Critical Strikes 1 | . . . 1 Corrupt 1 | . . . 1 Melee Attacks 11 | . . 11 . Impact . | . . . . Slashing 11 | . . 11 . Piercing . | . . . . Sneak Attacks . | . . . . Combat Hostiles . | . . . . Follow-up Attacks . | . . . . Damage Inflicted 987 | 15 52 35 885 Guns 612 | 15 52 35 510 Cannons . | . . . . Explosions 367 | . . . 367 Melee . | . . . . Ramming 8 | . . . 8 Kinetic 15 | 15 . . . Thermal 91 | . . . 91 Explosive 319 | . . . 319 Electromagnetic 554 | . 52 35 467 Impact . | . . . . Slashing . | . . . . Piercing . | . . . . Highest Corruption 5 | . . 5 1 Average Corruption 1 | . . 5 1 Corruption Purged . | . . . . Corruption Blocked . | . . . . Effects 6 | . . 1 5 Message Errors 3 | . . 1 2 Heat Flow Errors 1 | . . . 1 Energy Discharges 1 | . . . 1 Data Loss (minor) 1 | . . . 1 Overload Shots . | . . . . Overflow Damage . | . . . . Projectiles . | . . . . Explosions . | . . . . Melee . | . . . . Knockbacks . | . . . . Impact . | . . . . Kinetic . | . . . . Secondary . | . . . . Self-Inflicted Damage 59 | . . . 59 Shots 2 | . . . 2 Rammed 1 | . . . 1 Targets Rammed 7 | . 1 . 6 Kicked 6 | . 1 . 5 Crushed . | . . . . Highest Temperature 88 | 6 . . 88 Average Temperature 13 | 6 . . 14 Received Heat Transfer 657 | 6 66 . 585 Siege Activations . | . . . . Robots Corrupted . | . . . . Combat Hostiles . | . . . . Parts Fried 5 | . . . 5 Impact Corruptions . | . . . . Robots Melted . | . . . . Combat Hostiles . | . . . . Parts Melted . | . . . . Heat Transferred 185 | . . . 185 Parts Sabotaged . | . . . . Parts Stolen . | . . . . Parts Stripped . | . . . . Power Chain Reactions 1 | . . . 1 Alert | -11 -10 -10 -9 ------- Run | Yrd Mat Min Mat Peak Influence 356 | 20 73 85 356 Initial 28 | . 13 28 6 Average 109 | 2 36 57 150 Maximum Alert Level 1 | . . . 1 Low Security (%) 82 | 100 100 100 72 Level 1 17 | . . . 27 Level 2 . | . . . . Level 3 . | . . . . Level 4 . | . . . . Level 5 . | . . . . High Security . | . . . . Max Security . | . . . . Squads Dispatched 5 | . 2 . 3 Investigation 4 | . 1 . 3 Extermination . | . . . . Reinforcement 1 | . 1 . . Assault . | . . . . Garrison . | . . . . Intercept . | . . . . Searches Triggered . | . . . . Construction Impeded . | . . . . Haulers Reinforced . | . . . . Active Scanning Responses . | . . . . Cargo Convoy Interrupts . | . . . . Stealth | -11 -10 -10 -9 --------- Run | Yrd Mat Min Mat Distress Signals 2 | . 1 . 1 Communications Jammed . | . . . . Distress Signals . | . . . . Times Spotted 34 | 1 5 5 23 Peak Tracking Total 7 | 1 3 2 7 Tactical Retreats 3 | . . . 3 Traps | -11 -10 -10 -9 ------- Run | Yrd Mat Min Mat Traps Triggered 1 | . . . 1 Indirectly . | . . . . Trap Hack Attempts . | . . . . Triggered . | . . . . Disarmed . | . . . . Reprogrammed . | . . . . Reused . | . . . . Traps Extracted . | . . . . Installed . | . . . . Triggered . | . . . . Machines | -11 -10 -10 -9 ---------- Run | Yrd Mat Min Mat Machines Disabled 3 | . 1 . 2 Max in Single Turn 1 | . 1 . 1 Machines Repaired . | . . . . Machines Dismantled . | . . . . Machines Sabotaged . | . . . . Overloaded Fab Kills . | . . . . Hacking | -11 -10 -10 -9 --------- Run | Yrd Mat Min Mat Machines Accessed 7 | . 3 . 4 Terminals 5 | . 3 . 2 Fabricators . | . . . . Repair Stations 1 | . . . 1 Recycling Units 1 | . . . 1 Scanalyzers . | . . . . Garrison Access . | . . . . Total Hacks 18 | . 7 . 11 Successful 7 | . 1 . 6 Failed 11 | . 6 . 5 Catastrophic 3 | . 2 . 1 Database Lockouts . | . . . . Manual . | . . . . Terminals 11 | . 7 . 4 Fabricators . | . . . . Repair Stations 4 | . . . 4 Recycling Units 3 | . . . 3 Scanalyzers . | . . . . Garrison Access . | . . . . Terminal Hacks 1 | . 1 . . Record 1 | . 1 . . Fabricator Hacks . | . . . . Repair Station Hacks 3 | . . . 3 Scan Component 1 | . . . 1 Repair 1 | . . . 1 Refit 1 | . . . 1 Recycling Unit Hacks 3 | . . . 3 Recycle Component 1 | . . . 1 Process 2 | . . . 2 Scanalyzer . | . . . . Garrison Access Hacks . | . . . . Unauthorized Hacks . | . . . . Terminals . | . . . . Fabricators . | . . . . Repair Stations . | . . . . Recycling Units . | . . . . Scanalyzers . | . . . . Garrison Access . | . . . . Data Cores Recovered 1 | . . . 1 Used . | . . . . Hacking Detections 6 | . 2 . 4 Full Trace Events 4 | . 1 . 3 Feedback Events . | . . . . Feedback Blocked . | . . . . Robot Schematics Acquired . | . . . . Robots Built . | . . . . Authchips . | . . . . Time . | . . . . Total Robot Build Rating . | . . . . Part Schematics Acquired . | . . . . Parts Built . | . . . . Authchips . | . . . . Time . | . . . . Total Part Build Rating . | . . . . Parts Repaired 1 | . . . 1 Time 32 | . . . 32 Parts Recycled 1 | . . . 1 Recycled Matter 184 | . . . 184 Retrieved Matter . | . . . . Retrieved Components . | . . . . Parts Scanalyzed . | . . . . Part Schematics Acquired . | . . . . Parts Damaged . | . . . . Bothacking | -11 -10 -10 -9 ------------ Run | Yrd Mat Min Mat Used RIF Installer . | . . . . Robots Hacked . | . . . . Non-combat . | . . . . Combat . | . . . . Robot Hacks Applied . | . . . . Relay Couplers Released . | . . . . Fabnet Peak Effective % . | . . . . Robots Rewired . | . . . . Allies Hacked . | . . . . Hacks Repelled . | . . . . Allies | -11 -10 -10 -9 -------- Run | Yrd Mat Min Mat Total Allies 3 | . . 3 . Largest Group 3 | . . 3 . Highest-Rated Group 40 | . . 40 . Highest-Rated Ally 16 | . . 16 . Total Orders . | . . . . Ally Attacks 3 | . . 3 . Total Damage 11 | . . 11 . Kills . | . . . . Allies Corrupted . | . . . . Allies Melted . | . . . . Intel | -11 -10 -10 -9 ------- Run | Yrd Mat Min Mat Robot Analysis Total . | . . . . Derelict Logs Recovered 1 | . . 1 . Drone Launches . | . . . . Drone Recoveries . | . . . . Exploration | -11 -10 -10 -9 ------------- Run | Yrd Mat Min Mat Turns Passed 1562 | 78 314 171 999 Spaces Moved 1195 | 64 236 280 615 Core 54 | 17 . . 37 Treads 69 | . . . 69 Legs 571 | 47 236 2 286 Wheels . | . . . . Hover 129 | . . . 129 Flight 372 | . . 278 94 Fastest Speed 37 | 50 120 37 37 Average Speed 108 | 101 120 38 135 Slowest Speed 260 | 120 120 210 260 Overloaded Moves . | . . . . Propulsion Burnouts . | . . . . Robots Hopped . | . . . . Cave-ins Triggered 1 | . . 1 . Exploration Rate (%) 34 | 6 40 52 40 Regions Visited 3 Branch Regions 1 Pre-discovered Areas . | . . . . Known Exits Taken . | . . . . Unknown Exits Taken 3 | 1 1 1 . Scrap Searched 1 | . . 1 . Spaces Dug 11 | . . 11 . Terrain Destroyed 66 | . . 11 55 Melee 11 | . . 11 . Projectile . | . . . . AOE 55 | . . . 55 Terrain Rammed . | . . . . Walls Destroyed . | . . . . Machines Disabled . | . . . . Actions | -11 -10 -10 -9 --------- Run | Yrd Mat Min Mat Total 1388 | 75 261 319 733 Wait 23 | . 1 . 22 Move 1191 | 63 235 278 615 Hop . | . . . . Pick Up 30 | 6 5 6 13 Fast Attach . | . . . . Attach 33 | 5 6 5 17 Detach 14 | . 3 5 6 Swap 6 | . 1 4 1 Drop 12 | . 2 5 5 Fire 56 | 1 7 4 44 Melee 11 | . . 11 . Ram . | . . . . Kick 6 | . 1 . 5 Crush 1 | . . . 1 Escape Stasis 1 | . . 1 . Rewire 4 | . . . 4 Trap . | . . . . Miscellaneous . | . . . . Route ------- -11/Scrapyard -10/Materials (discovered 2 exits: *Mat / [*Min]) -10/Mines (discovered 2 exits: *Mat x2) -9/Materials (discovered 1 exit: [*Min]) History --------- Turn | Location | Event 2 | -11/Scrapyard | Met Revision 17 66 | -11/Scrapyard | Discovered new exit (range 8) 79 | -11/Scrapyard | Entered Materials 256 | -10/Materials | Discovered new exit (range 14) 302 | -10/Materials | Build established: Mutant 384 | -10/Materials | Discovered new exit (range 8) 393 | -10/Materials | Entered Mines 427 | -10/Mines | Learned Materials garrison access intel 451 | -10/Mines | Discovered new exit (range 8) 469 | -10/Mines | Discovered new exit (range 10) 480 | -10/Mines | Assisted by bots powering up and referring to "LRC-V3" 502 | -10/Mines | Assembled infested the area 528 | -10/Mines | Crushed by falling debris 536 | -10/Mines | Core integrity fell below 50% 543 | -10/Mines | Lost 3 allies 564 | -10/Mines | Entered Materials 564 | -9/Materials | Evolved 2 slots: Propulsion x2 947 | -9/Materials | Lost 5 parts (2n1u2w) 953 | -9/Materials | Core integrity fell below 50% 1126 | -9/Materials | Repaired EM Shotgun? 1556 | -9/Materials | Core integrity fell below 20% 1560 | -9/Materials | Discovered new exit (range 13) 1563 | -9/Materials | Destroyed by S-10 Pest with Light Assault Rifle Last Messages --------------- Lgt. Armor Plating (28) Corrupted Beam Rifle (25) Hover Unit (12) Wheel (18) Imp. Ion Engine (20) Corrupted Aluminum Leg (23) Backup Laser I (7) >>Recycling(Process) Analyzing inventory... ALERT: Suspicious activity at Recycling Unit M002. Dispatching Investigation squad. W-16 Scout sends out distress signal. System corrupted: Component data lost. Critical hit (Burn: +37). Aluminum Leg destroyed. EM Shotgun destroyed. Ion Engine destroyed. K-01 Serf cleans the Machine. EXIT=FOUND K-01 Serf cleans the Machine. Map ----- +----------------------------------------------------+ | ?????????????????????????????????????????????????? | | ?????????????????????????????????????????????????? | | ?????????????????????????????????????????????????? | | ?????????????????????????????????????????????????? | | ?????????????????????????????????????????????????? | | ?????????????????????????????????????????????????? | | ?????????????????????????????????????????????????? | | ??????????????????? ???????????????????????????? | | ??????????????????? #??????????????????????????? | | ??????????????????? #??????????????????????????? | | ######????????????# #??????????????????????????? | | """ # ???########## #??????????????????????????? | | """ # ???# # #??????????????????????????? | | """ # ??# """ # #??????????????????????????? | | # ??# "Y" # #??????????????????????????? | | # ??# # #??????????????????????????? | | # ??# # ####+######????????????????? | | +#### ?# """ # #????????????????? | | ## ?# """ # s #????????????????? | | ## ?# """ # """ #????????????????? | | ## ## # "T" #????????????????? | | # ####+##### s" " """ #????????????????? | | # ### s """ #????????????????? | | ### g """ +????????????????? | | #?# ### Y #????????????????? | | ### #?# k @ #????????????????? | | #######?# ######## ##### #????????????????? | | ######### #??????# #??????????????????????? | | #??????# #??????????????????????? | | ######### #??????# #??????????????????????? | | % #???######+######??# #??????????????????????? | | ##???# #?? k"??????????????????????? | | #????# #?? ?????????????????????? | | #????# #?# a !?????????????????????? | | #????# #?# < "?????????????????????? | | ###??# #?# w |?????????????????????? | | #??# ! #?# ?????????????????????? | | #??# #?# ""?????????????????????? | | #??#############?## #??????????????????????? | | #?????????????????# r???????????????????????? | | #?????????????????? ???????????????????????? | | #????????????????????????????????????????????? | | #????????????????????????????????????????????? | | ##########????????????????????????????????????? | | # #????????????????????????????????????? | | # """ #????????????????????????????????????? | | + """ #????????????????????????????????????? | | # """ #????????????????????????????????????? | | # #????????????????????????????????????? | | # " #????????????????????????????????????? | +----------------------------------------------------+ Best States ------------- Heat Dissipation 38 Energy Generation 10 Energy Capacity 500 Matter Stores 300 Matter Capacity 300 Sight Range 16 Terrain Scan Density 10 Armor Coverage 150 Power Shielding 33 Evasion (%) 62 Recoil Reduction 1 Item Schematics ----------------- None Robot Schematics ------------------ None Fabricated ------------ Nothing Alien Tech Used ----------------- None Achievements -------------- Part-time Excavator Uninvited Guest Unlikely Earthworm Challenges ------------ None Game ------ Seed DisruptorHeavyArray Manual? 0 Play Time 00:47:20 Cumulative 1.9 hours Start 2024.08.24 @ 20:50:25 End 2024.08.24 @ 23:40:07 Sessions 1 Manual Loads 0 Difficulty Rogue Special Mode None Game No. 3 Rogue 3 Adventurer 0 Explorer 0 Win Type - Total 0 Types 0/0/0/0/0/0/0/0/0 Lore% 0 Gallery% 4 Achievement% 2 Wizard Run 0 Options --------- Layout 1 ASCII 0 Keyboard 0 Movement Vi Keybinds 0 Fullscreen 2 Font 32/SmallcapsGlow Map View 50x35 Zoom Use 0% Tactical HUD 0 Map Filters NONE Filters NONE Steam 1 RUN: 309c2683-3cfe-4747-9e55-947c4fdaa9fd